[Event "Titled Tuesday Blitz August 08 Late 2023"]
[White "Merino Garcia, Rafael II"]
[Black "Womacka, Mathias"]
[WhiteFideId "2209128"]
[BlackFideId "4611390"]
[WhiteElo "2262"]
[BlackElo "2466"]
[Result "0-1"]
[Round "7"]
[TimeControl "180+1"]
[Date "2023.08.08"]
[WhiteClock "0:00:18"]
[BlackClock "0:00:11"]
[Board "138"]

1. d4 {[%clk 0:02:54]}  Nf6 {[%clk 0:02:58]} 2. Nf3 {[%clk 0:02:54]}  e6 {[%clk 0:02:59]} 3. g3 {[%clk 0:02:54]}  c5 {[%clk 0:02:58]} 4. c4 {[%clk 0:02:51]}  cxd4 {[%clk 0:02:56]} 5. Nxd4 {[%clk 0:02:51]}  Qc7 {[%clk 0:02:55]} 6. b3 {[%clk 0:02:46]}  Bb4+ {[%clk 0:02:54]} 7. Bd2 {[%clk 0:02:45]}  Bc5 {[%clk 0:02:54]} 8. Nc2 {[%clk 0:02:17]}  Qc6 {[%clk 0:02:45]} 9. f3 {[%clk 0:02:14]}  Qb6 {[%clk 0:02:44]} 10. Bg2 {[%clk 0:02:05]}  Nc6 {[%clk 0:02:33]} 11. Nc3 {[%clk 0:02:04]}  Bf2+ {[%clk 0:02:07]} 12. Kf1 {[%clk 0:02:03]}  Bd4 {[%clk 0:02:07]} 13. Nxd4 {[%clk 0:01:56]}  Qxd4 {[%clk 0:02:07]} 14. Nb5 {[%clk 0:01:54]}  Qb6 {[%clk 0:01:59]} 15. Nd6+ {[%clk 0:01:47]}  Ke7 {[%clk 0:01:58]} 16. Bc3 {[%clk 0:01:30]}  Qc7 {[%clk 0:01:40]} 17. Nb5 {[%clk 0:01:28]}  Qb8 {[%clk 0:01:31]} 18. Bb2 {[%clk 0:01:18]}  Rd8 {[%clk 0:01:25]} 19. Ba3+ {[%clk 0:01:17]}  d6 {[%clk 0:01:25]} 20. Qd2 {[%clk 0:00:52]}  a6 {[%clk 0:01:25]} 21. Nc3 {[%clk 0:00:52]}  b5 {[%clk 0:01:17]} 22. c5 {[%clk 0:00:41]}  b4 {[%clk 0:01:10]} 23. Bb2 {[%clk 0:00:34]}  bxc3 {[%clk 0:01:08]} 24. Qxc3 {[%clk 0:00:34]}  d5 {[%clk 0:00:52]} 25. g4 {[%clk 0:00:32]}  a5 {[%clk 0:00:45]} 26. g5 {[%clk 0:00:31]}  Ne8 {[%clk 0:00:45]} 27. Kf2 {[%clk 0:00:29]}  Qb4 {[%clk 0:00:42]} 28. Qc2 {[%clk 0:00:29]}  Qh4+ {[%clk 0:00:29]} 29. Kf1 {[%clk 0:00:29]}  Qxg5 {[%clk 0:00:28]} 30. Rg1 {[%clk 0:00:30]}  Qg6 {[%clk 0:00:19]} 31. Qd2 {[%clk 0:00:28]}  Qh6 {[%clk 0:00:17]} 32. Qc2 {[%clk 0:00:27]}  Ba6 {[%clk 0:00:14]} 33. Bc1 {[%clk 0:00:27]}  Qxh2 {[%clk 0:00:12]} 34. Rh1 {[%clk 0:00:27]}  Qe5 {[%clk 0:00:11]} 35. Bb2 {[%clk 0:00:24]}  Nd4 {[%clk 0:00:11]} 36. Qd2 {[%clk 0:00:22]}  Qxe2+ {[%clk 0:00:10]} 37. Qxe2 {[%clk 0:00:22]}  Nxe2 {[%clk 0:00:11]} 38. Rxh7 {[%clk 0:00:20]}  Nf4+ {[%clk 0:00:10]} 39. Kf2 {[%clk 0:00:20]}  Nd3+ {[%clk 0:00:10]} 40. Kg3 {[%clk 0:00:18]}  Nxb2 {[%clk 0:00:11]} 0-1


[Site "https://www.chess.com"]

[Event "Titled Tuesday Blitz August 08 Late 2023"]
[White "Weisz, Bryan"]
[Black "Josgar05"]
[WhiteFideId "30934133"]
[WhiteElo "2311"]
[BlackElo "2236"]
[Result "1-0"]
[Round "7"]
[TimeControl "180+1"]
[Date "2023.08.08"]
[WhiteClock "0:01:00"]
[BlackClock "0:00:00"]
[Board "140"]

1. e3 {[%clk 0:03:00]}  e5 {[%clk 0:02:57]} 2. Qf3 {[%clk 0:02:58]}  Nc6 {[%clk 0:02:41]} 3. Qg3 {[%clk 0:02:55]}  g6 {[%clk 0:02:38]} 4. c3 {[%clk 0:02:52]}  e4 {[%clk 0:02:36]} 5. d3 {[%clk 0:02:47]}  d5 {[%clk 0:02:35]} 6. Nd2 {[%clk 0:02:45]}  Bd6 {[%clk 0:02:24]} 7. f4 {[%clk 0:02:45]}  exf3 {[%clk 0:02:22]} 8. Qxf3 {[%clk 0:02:43]}  Nf6 {[%clk 0:02:20]} 9. e4 {[%clk 0:02:37]}  Bg4 {[%clk 0:02:18]} 10. Qe3 {[%clk 0:02:34]}  Ne5 {[%clk 0:02:11]} 11. d4 {[%clk 0:02:29]}  dxe4 {[%clk 0:01:59]} 12. dxe5 {[%clk 0:02:27]}  Bxe5 {[%clk 0:02:00]} 13. Ngf3 {[%clk 0:02:12]}  exf3 {[%clk 0:01:18]} 14. Qxe5+ {[%clk 0:02:12]}  Kd7 {[%clk 0:01:18]} 15. Qd4+ {[%clk 0:02:01]}  Kc6 {[%clk 0:01:12]} 16. Qa4+ {[%clk 0:01:45]}  Kd6 {[%clk 0:01:09]} 17. Nxf3 {[%clk 0:01:34]}  Re8+ {[%clk 0:01:01]} 18. Be2 {[%clk 0:01:24]}  Rxe2+ {[%clk 0:00:58]} 19. Kxe2 {[%clk 0:01:22]}  Qe7+ {[%clk 0:00:59]} 20. Be3 {[%clk 0:01:16]}  Nd5 {[%clk 0:00:57]} 21. Qa3+ {[%clk 0:01:12]}  c5 {[%clk 0:00:53]} 22. Qxc5+ {[%clk 0:01:12]}  Ke6 {[%clk 0:00:54]} 23. Qxe7+ {[%clk 0:01:08]}  Kxe7 {[%clk 0:00:00]} 24. Rad1 {[%clk 0:01:00]} 1-0


[Site "https://www.chess.com"]

[Event "Titled Tuesday Blitz August 08 Late 2023"]
[White "Guerrero Vargas, Andres Jesus"]
[Black "De Arruda, Leandro Formes"]
[WhiteFideId "3902048"]
[BlackFideId "22722009"]
[WhiteElo "2421"]
[BlackElo "2205"]
[Result "1-0"]
[Round "7"]
[TimeControl "180+1"]
[Date "2023.08.08"]
[WhiteClock "0:00:09"]
[BlackClock "0:00:06"]
[Board "143"]

1. e4 {[%clk 0:03:00]}  e6 {[%clk 0:02:59]} 2. d4 {[%clk 0:02:56]}  d5 {[%clk 0:03:00]} 3. exd5 {[%clk 0:02:56]}  exd5 {[%clk 0:03:01]} 4. Nf3 {[%clk 0:02:55]}  Nf6 {[%clk 0:03:02]} 5. Bd3 {[%clk 0:02:55]}  Bd6 {[%clk 0:03:02]} 6. Qe2+ {[%clk 0:02:55]}  Qe7 {[%clk 0:03:01]} 7. Nc3 {[%clk 0:02:56]}  Qxe2+ {[%clk 0:03:00]} 8. Nxe2 {[%clk 0:02:56]}  O-O {[%clk 0:03:00]} 9. c3 {[%clk 0:02:55]}  Ne4 {[%clk 0:03:00]} 10. O-O {[%clk 0:02:54]}  f5 {[%clk 0:03:00]} 11. Bf4 {[%clk 0:02:52]}  Bxf4 {[%clk 0:02:57]} 12. Nxf4 {[%clk 0:02:52]}  c6 {[%clk 0:02:57]} 13. Ne5 {[%clk 0:02:51]}  Nd7 {[%clk 0:02:55]} 14. f3 {[%clk 0:02:36]}  Nxe5 {[%clk 0:02:55]} 15. dxe5 {[%clk 0:02:36]}  Ng5 {[%clk 0:02:45]} 16. Rae1 {[%clk 0:02:27]}  Ne6 {[%clk 0:02:44]} 17. Ne2 {[%clk 0:02:21]}  b5 {[%clk 0:02:35]} 18. Bc2 {[%clk 0:02:16]}  a5 {[%clk 0:02:31]} 19. Rd1 {[%clk 0:02:02]}  a4 {[%clk 0:02:29]} 20. Rfe1 {[%clk 0:01:59]}  Bb7 {[%clk 0:02:24]} 21. h3 {[%clk 0:01:49]}  Rae8 {[%clk 0:02:23]} 22. Nc1 {[%clk 0:01:44]}  f4 {[%clk 0:02:15]} 23. b3 {[%clk 0:01:31]}  a3 {[%clk 0:02:09]} 24. b4 {[%clk 0:01:29]}  g6 {[%clk 0:01:58]} 25. Nb3 {[%clk 0:01:28]}  Ba8 {[%clk 0:01:54]} 26. Kf2 {[%clk 0:01:24]}  Rf7 {[%clk 0:01:49]} 27. Nc1 {[%clk 0:01:14]}  Rfe7 {[%clk 0:01:47]} 28. Nd3 {[%clk 0:01:13]}  Kg7 {[%clk 0:01:36]} 29. h4 {[%clk 0:01:11]}  Bb7 {[%clk 0:01:33]} 30. Rh1 {[%clk 0:01:10]}  Bc8 {[%clk 0:01:30]} 31. Rb1 {[%clk 0:01:06]}  Bd7 {[%clk 0:01:21]} 32. Rb3 {[%clk 0:01:04]}  Ra8 {[%clk 0:01:21]} 33. h5 {[%clk 0:00:55]}  g5 {[%clk 0:01:19]} 34. h6+ {[%clk 0:00:54]}  Kg8 {[%clk 0:01:11]} 35. Rh5 {[%clk 0:00:54]}  Be8 {[%clk 0:01:08]} 36. Rh1 {[%clk 0:00:53]}  Bg6 {[%clk 0:01:08]} 37. Bb1 {[%clk 0:00:48]}  Bxd3 {[%clk 0:01:07]} 38. Bxd3 {[%clk 0:00:48]}  Nc7 {[%clk 0:01:00]} 39. Re1 {[%clk 0:00:43]}  Ne8 {[%clk 0:00:51]} 40. g3 {[%clk 0:00:40]}  fxg3+ {[%clk 0:00:45]} 41. Kxg3 {[%clk 0:00:40]}  Nf6 {[%clk 0:00:44]} 42. Bf5 {[%clk 0:00:22]}  Nh5+ {[%clk 0:00:41]} 43. Kg4 {[%clk 0:00:20]}  Nf4 {[%clk 0:00:37]} 44. Kxg5 {[%clk 0:00:18]}  Ng2 {[%clk 0:00:19]} 45. Rg1 {[%clk 0:00:18]}  Kf7 {[%clk 0:00:19]} 46. Bxh7 {[%clk 0:00:16]}  Ke6 {[%clk 0:00:18]} 47. Rxg2 {[%clk 0:00:16]}  Rxh7 {[%clk 0:00:17]} 48. Kh5 {[%clk 0:00:15]}  Kxe5 {[%clk 0:00:14]} 49. Rb1 {[%clk 0:00:14]}  Rah8 {[%clk 0:00:13]} 50. Rg6 {[%clk 0:00:14]}  Kf5 {[%clk 0:00:12]} 51. Rbg1 {[%clk 0:00:13]}  Kf4 {[%clk 0:00:08]} 52. Rf6+ {[%clk 0:00:12]}  Ke3 {[%clk 0:00:07]} 53. Rxc6 {[%clk 0:00:11]}  Rf7 {[%clk 0:00:07]} 54. Rg3 {[%clk 0:00:07]}  Kf2 {[%clk 0:00:06]} 55. Rh3 {[%clk 0:00:06]}  Rg8 {[%clk 0:00:04]} 56. Rg6 {[%clk 0:00:04]}  Rf5+ {[%clk 0:00:03]} 57. Kg4 {[%clk 0:00:03]}  Rxg6+ {[%clk 0:00:02]} 58. Kxf5 {[%clk 0:00:02]}  Rg8 {[%clk 0:00:03]} 59. h7 {[%clk 0:00:03]}  Rh8 {[%clk 0:00:03]} 60. Kg6 {[%clk 0:00:04]}  Kg2 {[%clk 0:00:03]} 61. Kg7 {[%clk 0:00:05]}  Kxh3 {[%clk 0:00:03]} 62. Kxh8 {[%clk 0:00:05]}  Kg3 {[%clk 0:00:04]} 63. Kg7 {[%clk 0:00:06]}  d4 {[%clk 0:00:05]} 64. h8=Q {[%clk 0:00:07]}  dxc3 {[%clk 0:00:06]} 65. Qc8 {[%clk 0:00:07]}  c2 {[%clk 0:00:07]} 66. Qxc2 {[%clk 0:00:08]}  Kxf3 {[%clk 0:00:07]} 67. Qc5 {[%clk 0:00:09]}  Ke4 {[%clk 0:00:06]} 68. Qxb5 {[%clk 0:00:09]} 1-0


[Site "https://www.chess.com"]

[Event "Titled Tuesday Blitz August 08 Late 2023"]
[White "Upper, John"]
[Black "Fajdetic, Hrvoje"]
[WhiteFideId "2606437"]
[BlackFideId "14501945"]
[WhiteElo "1951"]
[BlackElo "2262"]
[Result "0-1"]
[Round "7"]
[TimeControl "180+1"]
[Date "2023.08.08"]
[WhiteClock "0:00:00"]
[BlackClock "0:00:04"]
[Board "149"]

1. b3 {[%clk 0:03:00]}  e5 {[%clk 0:02:55]} 2. Bb2 {[%clk 0:03:01]}  d6 {[%clk 0:02:55]} 3. e3 {[%clk 0:02:59]}  f5 {[%clk 0:02:55]} 4. g3 {[%clk 0:02:54]}  Nf6 {[%clk 0:02:55]} 5. Bg2 {[%clk 0:02:55]}  Be7 {[%clk 0:02:56]} 6. Ne2 {[%clk 0:02:53]}  O-O {[%clk 0:02:56]} 7. c4 {[%clk 0:02:50]}  c6 {[%clk 0:02:57]} 8. O-O {[%clk 0:02:44]}  Qe8 {[%clk 0:02:57]} 9. f4 {[%clk 0:02:38]}  e4 {[%clk 0:02:57]} 10. d3 {[%clk 0:02:35]}  d5 {[%clk 0:02:57]} 11. Bxf6 {[%clk 0:02:18]}  Bxf6 {[%clk 0:02:54]} 12. d4 {[%clk 0:02:18]}  a5 {[%clk 0:02:53]} 13. Nbc3 {[%clk 0:02:14]}  Be6 {[%clk 0:02:40]} 14. Na4 {[%clk 0:01:59]}  Nd7 {[%clk 0:02:34]} 15. Rc1 {[%clk 0:01:55]}  Be7 {[%clk 0:02:09]} 16. cxd5 {[%clk 0:01:46]}  cxd5 {[%clk 0:01:57]} 17. Rc7 {[%clk 0:01:35]}  b5 {[%clk 0:01:56]} 18. Nc5 {[%clk 0:01:26]}  Nxc5 {[%clk 0:01:52]} 19. dxc5 {[%clk 0:01:27]}  Qd8 {[%clk 0:01:30]} 20. Rc6 {[%clk 0:01:18]}  Qd7 {[%clk 0:00:50]} 21. Nd4 {[%clk 0:01:17]}  Bf7 {[%clk 0:00:50]} 22. Qc2 {[%clk 0:01:04]}  Rfc8 {[%clk 0:00:33]} 23. Rxc8+ {[%clk 0:01:00]}  Rxc8 {[%clk 0:00:34]} 24. c6 {[%clk 0:01:00]}  Qa7 {[%clk 0:00:19]} 25. Nxf5 {[%clk 0:00:52]}  Bc5 {[%clk 0:00:19]} 26. Re1 {[%clk 0:00:42]}  Rxc6 {[%clk 0:00:18]} 27. Nd4 {[%clk 0:00:40]}  Rc7 {[%clk 0:00:14]} 28. Qd2 {[%clk 0:00:37]}  Bxd4 {[%clk 0:00:14]} 29. exd4 {[%clk 0:00:36]}  b4 {[%clk 0:00:13]} 30. Bh3 {[%clk 0:00:35]}  Rc3 {[%clk 0:00:10]} 31. f5 {[%clk 0:00:25]}  Rd3 {[%clk 0:00:10]} 32. Qf4 {[%clk 0:00:23]}  Qxd4+ {[%clk 0:00:10]} 33. Kh1 {[%clk 0:00:22]}  h6 {[%clk 0:00:09]} 34. Qb8+ {[%clk 0:00:19]}  Kh7 {[%clk 0:00:09]} 35. Bg4 {[%clk 0:00:17]}  Re3 {[%clk 0:00:08]} 36. Rc1 {[%clk 0:00:16]}  Rc3 {[%clk 0:00:08]} 37. Re1 {[%clk 0:00:15]}  e3 {[%clk 0:00:07]} 38. Qb7 {[%clk 0:00:13]}  Qe4+ {[%clk 0:00:07]} 39. Kg1 {[%clk 0:00:13]}  Qxg4 {[%clk 0:00:07]} 40. Qxf7 {[%clk 0:00:11]}  e2 {[%clk 0:00:04]} 41. Qg6+ {[%clk 0:00:11]}  Qxg6 {[%clk 0:00:04]} 42. fxg6+ {[%clk 0:00:12]}  Kxg6 {[%clk 0:00:05]} 43. Rxe2 {[%clk 0:00:12]}  Kf5 {[%clk 0:00:06]} 44. Kf2 {[%clk 0:00:12]}  d4 {[%clk 0:00:05]} 45. Re7 {[%clk 0:00:09]}  g5 {[%clk 0:00:04]} 46. Ke2 {[%clk 0:00:04]}  Rc2+ {[%clk 0:00:04]} 47. Kd3 {[%clk 0:00:05]}  Rxa2 {[%clk 0:00:04]} 48. h4 {[%clk 0:00:04]}  gxh4 {[%clk 0:00:03]} 49. gxh4 {[%clk 0:00:04]}  Ra3 {[%clk 0:00:04]} 50. Kxd4 {[%clk 0:00:03]}  Rxb3 {[%clk 0:00:04]} 51. Re5+ {[%clk 0:00:03]}  Kg4 {[%clk 0:00:04]} 52. h5 {[%clk 0:00:03]}  a4 {[%clk 0:00:03]} 53. Kc4 {[%clk 0:00:00]}  Rb1 {[%clk 0:00:04]} 0-1


[Site "https://www.chess.com"]

[Event "Titled Tuesday Blitz August 08 Late 2023"]
[White "Vaglio Munoz, Jaime"]
[Black "Burke, Paul"]
[WhiteFideId "6500145"]
[BlackFideId "2605767"]
[WhiteElo "2233"]
[BlackElo "1863"]
[Result "1-0"]
[Round "7"]
[TimeControl "180+1"]
[Date "2023.08.08"]
[WhiteClock "0:01:49"]
[BlackClock "0:00:15"]
[Board "151"]

1. e4 {[%clk 0:02:57]}  e5 {[%clk 0:02:48]} 2. f4 {[%clk 0:02:56]}  Bc5 {[%clk 0:02:47]} 3. Nf3 {[%clk 0:02:56]}  d6 {[%clk 0:02:46]} 4. b4 {[%clk 0:02:55]}  Bb6 {[%clk 0:02:45]} 5. c4 {[%clk 0:02:54]}  a6 {[%clk 0:02:42]} 6. fxe5 {[%clk 0:02:53]}  dxe5 {[%clk 0:02:38]} 7. c5 {[%clk 0:02:53]}  Ba7 {[%clk 0:02:38]} 8. Bb2 {[%clk 0:02:52]}  Bg4 {[%clk 0:02:31]} 9. Bc4 {[%clk 0:02:48]}  Nf6 {[%clk 0:02:30]} 10. d3 {[%clk 0:02:39]}  Nc6 {[%clk 0:02:27]} 11. Qb3 {[%clk 0:02:37]}  O-O {[%clk 0:02:25]} 12. Nbd2 {[%clk 0:02:33]}  a5 {[%clk 0:02:12]} 13. a3 {[%clk 0:02:32]}  axb4 {[%clk 0:02:07]} 14. axb4 {[%clk 0:02:32]}  Nd4 {[%clk 0:02:02]} 15. Bxd4 {[%clk 0:02:09]}  exd4 {[%clk 0:02:01]} 16. O-O {[%clk 0:02:09]}  c6 {[%clk 0:01:27]} 17. e5 {[%clk 0:01:59]}  Nd7 {[%clk 0:01:09]} 18. e6 {[%clk 0:01:55]}  Bxe6 {[%clk 0:01:07]} 19. Bxe6 {[%clk 0:01:55]}  fxe6 {[%clk 0:01:06]} 20. Qxe6+ {[%clk 0:01:56]}  Kh8 {[%clk 0:01:06]} 21. Ne4 {[%clk 0:01:55]}  Nf6 {[%clk 0:00:49]} 22. Nd6 {[%clk 0:01:50]}  b5 {[%clk 0:00:15]} 23. Ne5 {[%clk 0:01:49]} 1-0


[Site "https://www.chess.com"]

[Event "Titled Tuesday Blitz August 08 Late 2023"]
[White "Thiel, Thomas"]
[Black "alfianasybullina"]
[WhiteFideId "4615964"]
[WhiteElo "2180"]
[BlackElo "2234"]
[Result "1/2-1/2"]
[Round "7"]
[TimeControl "180+1"]
[Date "2023.08.08"]
[WhiteClock "0:00:31"]
[BlackClock "0:00:36"]
[Board "153"]

1. e4 {[%clk 0:03:00]}  c6 {[%clk 0:02:59]} 2. d4 {[%clk 0:03:00]}  d5 {[%clk 0:02:59]} 3. exd5 {[%clk 0:02:59]}  cxd5 {[%clk 0:03:00]} 4. c4 {[%clk 0:03:00]}  Nf6 {[%clk 0:02:59]} 5. Nc3 {[%clk 0:03:00]}  Nc6 {[%clk 0:03:00]} 6. Bg5 {[%clk 0:02:57]}  dxc4 {[%clk 0:02:52]} 7. Bxc4 {[%clk 0:02:55]}  e6 {[%clk 0:02:51]} 8. Nf3 {[%clk 0:02:51]}  Be7 {[%clk 0:02:50]} 9. O-O {[%clk 0:02:51]}  O-O {[%clk 0:02:51]} 10. a3 {[%clk 0:02:47]}  a6 {[%clk 0:02:50]} 11. Rc1 {[%clk 0:02:44]}  b5 {[%clk 0:02:46]} 12. Ba2 {[%clk 0:02:42]}  Bb7 {[%clk 0:02:44]} 13. Bxf6 {[%clk 0:02:33]}  Bxf6 {[%clk 0:02:42]} 14. d5 {[%clk 0:02:33]}  exd5 {[%clk 0:02:39]} 15. Bxd5 {[%clk 0:02:33]}  Na5 {[%clk 0:02:33]} 16. Bxb7 {[%clk 0:02:31]}  Nxb7 {[%clk 0:02:34]} 17. b4 {[%clk 0:02:23]}  Bxc3 {[%clk 0:02:28]} 18. Rxc3 {[%clk 0:02:21]}  Qf6 {[%clk 0:02:26]} 19. Qd4 {[%clk 0:02:14]}  Qxd4 {[%clk 0:02:22]} 20. Nxd4 {[%clk 0:02:15]}  Rfd8 {[%clk 0:02:22]} 21. Nc6 {[%clk 0:02:11]}  Rd7 {[%clk 0:02:17]} 22. g3 {[%clk 0:02:10]}  g6 {[%clk 0:02:16]} 23. Re1 {[%clk 0:02:08]}  Kg7 {[%clk 0:02:10]} 24. Rf3 {[%clk 0:01:59]}  Nd6 {[%clk 0:02:03]} 25. Rd1 {[%clk 0:01:57]}  Rc8 {[%clk 0:01:41]} 26. Na5 {[%clk 0:01:48]}  Kf8 {[%clk 0:01:32]} 27. Rfd3 {[%clk 0:01:46]}  Ke7 {[%clk 0:01:32]} 28. Nb3 {[%clk 0:01:45]}  Rdd8 {[%clk 0:01:28]} 29. Nc5 {[%clk 0:01:44]}  Nc4 {[%clk 0:01:25]} 30. Re1+ {[%clk 0:01:37]}  Kf8 {[%clk 0:01:23]} 31. Rxd8+ {[%clk 0:01:33]}  Rxd8 {[%clk 0:01:22]} 32. Ra1 {[%clk 0:01:24]}  Rd6 {[%clk 0:01:21]} 33. a4 {[%clk 0:01:21]}  Kg7 {[%clk 0:01:11]} 34. axb5 {[%clk 0:01:19]}  axb5 {[%clk 0:01:12]} 35. Kg2 {[%clk 0:01:13]}  h5 {[%clk 0:01:01]} 36. Ra8 {[%clk 0:01:10]}  h4 {[%clk 0:00:55]} 37. gxh4 {[%clk 0:01:08]}  Rd4 {[%clk 0:00:55]} 38. Rb8 {[%clk 0:01:07]}  Nd6 {[%clk 0:00:55]} 39. Rb6 {[%clk 0:01:05]}  Kf6 {[%clk 0:00:52]} 40. Nb7 {[%clk 0:01:01]}  Ke7 {[%clk 0:00:37]} 41. Nxd6 {[%clk 0:01:01]}  Rxd6 {[%clk 0:00:37]} 42. Rxb5 {[%clk 0:01:00]}  Rd4 {[%clk 0:00:37]} 43. h5 {[%clk 0:00:59]}  gxh5 {[%clk 0:00:38]} 44. Rxh5 {[%clk 0:00:57]}  Rxb4 {[%clk 0:00:37]} 45. Rg5 {[%clk 0:00:57]}  Kf6 {[%clk 0:00:37]} 46. Rg3 {[%clk 0:00:55]}  Kf5 {[%clk 0:00:38]} 47. h3 {[%clk 0:00:50]}  f6 {[%clk 0:00:37]} 48. Rf3+ {[%clk 0:00:47]}  Kg5 {[%clk 0:00:37]} 49. Kg3 {[%clk 0:00:42]}  f5 {[%clk 0:00:35]} 50. h4+ {[%clk 0:00:39]}  Rxh4 {[%clk 0:00:35]} 51. Rxf5+ {[%clk 0:00:36]}  Kxf5 {[%clk 0:00:36]} 52. Kxh4 {[%clk 0:00:32]}  Kf4 {[%clk 0:00:36]} 53. f3 {[%clk 0:00:31]}  Kxf3 {[%clk 0:00:36]} 1/2-1/2


[Site "https://www.chess.com"]

[Event "Titled Tuesday Blitz August 08 Late 2023"]
[White "Iturrizaga Bonelli, Eduardo"]
[Black "Firouzja, Alireza"]
[WhiteFideId "3901211"]
[BlackFideId "12573981"]
[WhiteElo "2980"]
[BlackElo "3094"]
[Result "1-0"]
[Round "8"]
[TimeControl "180+1"]
[Date "2023.08.08"]
[WhiteClock "0:01:03"]
[BlackClock "0:00:00"]
[Board "1"]

1. c4 {[%clk 0:03:00]}  g6 {[%clk 0:02:57]} 2. g3 {[%clk 0:02:59]}  Bg7 {[%clk 0:02:57]} 3. Bg2 {[%clk 0:02:59]}  Nf6 {[%clk 0:02:55]} 4. Nc3 {[%clk 0:03:00]}  O-O {[%clk 0:02:56]} 5. d4 {[%clk 0:03:00]}  d6 {[%clk 0:02:56]} 6. Nf3 {[%clk 0:03:01]}  Nbd7 {[%clk 0:02:56]} 7. O-O {[%clk 0:03:01]}  e5 {[%clk 0:02:57]} 8. Qc2 {[%clk 0:03:00]}  Re8 {[%clk 0:02:53]} 9. Rd1 {[%clk 0:03:00]}  c6 {[%clk 0:02:51]} 10. e4 {[%clk 0:02:57]}  Qe7 {[%clk 0:02:46]} 11. d5 {[%clk 0:02:39]}  cxd5 {[%clk 0:02:40]} 12. cxd5 {[%clk 0:02:40]}  a6 {[%clk 0:02:40]} 13. a4 {[%clk 0:02:36]}  Qf8 {[%clk 0:02:03]} 14. a5 {[%clk 0:02:34]}  Bh6 {[%clk 0:01:57]} 15. Ng5 {[%clk 0:02:18]}  Qe7 {[%clk 0:01:52]} 16. h4 {[%clk 0:02:12]}  Nf8 {[%clk 0:01:49]} 17. Na4 {[%clk 0:01:52]}  Bg4 {[%clk 0:01:48]} 18. f3 {[%clk 0:01:52]}  Bd7 {[%clk 0:01:48]} 19. Nb6 {[%clk 0:01:52]}  Rad8 {[%clk 0:01:48]} 20. Qc7 {[%clk 0:01:37]}  Nh5 {[%clk 0:01:42]} 21. Kh2 {[%clk 0:01:29]}  f6 {[%clk 0:01:27]} 22. Ne6 {[%clk 0:01:24]}  Bxe6 {[%clk 0:00:59]} 23. Qxe7 {[%clk 0:01:25]}  Rxe7 {[%clk 0:00:57]} 24. Bxh6 {[%clk 0:01:25]}  Bf7 {[%clk 0:00:54]} 25. Rac1 {[%clk 0:01:22]}  Be8 {[%clk 0:00:53]} 26. Bh3 {[%clk 0:01:16]}  Bb5 {[%clk 0:00:50]} 27. Rc3 {[%clk 0:01:13]}  Ng7 {[%clk 0:00:44]} 28. Rdc1 {[%clk 0:01:12]}  Rf7 {[%clk 0:00:17]} 29. Rc8 {[%clk 0:01:07]}  Re8 {[%clk 0:00:12]} 30. R8c7 {[%clk 0:01:02]}  Ree7 {[%clk 0:00:01]} 31. Rxe7 {[%clk 0:01:02]}  Rxe7 {[%clk 0:00:00]} 32. Nc8 {[%clk 0:01:03]} 1-0


[Site "https://www.chess.com"]

[Event "Titled Tuesday Blitz August 08 Late 2023"]
[White "Naroditsky, Daniel"]
[Black "Paravyan, David"]
[WhiteFideId "2026961"]
[BlackFideId "4194985"]
[WhiteElo "3198"]
[BlackElo "3047"]
[Result "1-0"]
[Round "8"]
[TimeControl "180+1"]
[Date "2023.08.08"]
[WhiteClock "0:01:15"]
[BlackClock "0:00:48"]
[Board "2"]

1. e4 {[%clk 0:03:00]}  e5 {[%clk 0:02:59]} 2. Nf3 {[%clk 0:03:00]}  Nf6 {[%clk 0:03:00]} 3. Nc3 {[%clk 0:02:59]}  Nc6 {[%clk 0:03:01]} 4. g3 {[%clk 0:02:55]}  Bc5 {[%clk 0:03:00]} 5. Bg2 {[%clk 0:02:55]}  d6 {[%clk 0:03:00]} 6. d3 {[%clk 0:02:55]}  a5 {[%clk 0:03:01]} 7. O-O {[%clk 0:02:54]}  O-O {[%clk 0:03:01]} 8. h3 {[%clk 0:02:54]}  a4 {[%clk 0:03:02]} 9. a3 {[%clk 0:02:55]}  h6 {[%clk 0:03:01]} 10. Kh2 {[%clk 0:02:55]}  Be6 {[%clk 0:02:52]} 11. Nd2 {[%clk 0:02:55]}  Nd4 {[%clk 0:02:37]} 12. f4 {[%clk 0:02:52]}  b5 {[%clk 0:02:38]} 13. Nf3 {[%clk 0:02:44]}  Nxf3+ {[%clk 0:02:35]} 14. Qxf3 {[%clk 0:02:39]}  b4 {[%clk 0:02:36]} 15. axb4 {[%clk 0:02:38]}  Bxb4 {[%clk 0:02:37]} 16. Rxa4 {[%clk 0:02:33]}  Rxa4 {[%clk 0:02:32]} 17. Nxa4 {[%clk 0:02:34]}  exf4 {[%clk 0:02:32]} 18. Bxf4 {[%clk 0:02:24]}  Nd7 {[%clk 0:02:28]} 19. d4 {[%clk 0:02:22]}  Bc4 {[%clk 0:02:26]} 20. Ra1 {[%clk 0:02:22]}  Qf6 {[%clk 0:02:11]} 21. c3 {[%clk 0:02:17]}  Ba5 {[%clk 0:02:11]} 22. b4 {[%clk 0:02:13]}  Bb6 {[%clk 0:02:02]} 23. Nxb6 {[%clk 0:02:10]}  Nxb6 {[%clk 0:02:03]} 24. e5 {[%clk 0:01:52]}  Qe6 {[%clk 0:01:45]} 25. exd6 {[%clk 0:01:39]}  cxd6 {[%clk 0:01:44]} 26. Qc6 {[%clk 0:01:38]}  Nd5 {[%clk 0:01:16]} 27. Qxc4 {[%clk 0:01:29]}  Nxf4 {[%clk 0:01:15]} 28. d5 {[%clk 0:01:28]}  Qe3 {[%clk 0:00:54]} 29. Qxf4 {[%clk 0:01:21]}  Qxc3 {[%clk 0:00:48]} 30. Rf1 {[%clk 0:01:15]} 1-0


[Site "https://www.chess.com"]